[Event "Titled Tuesday Blitz April 05 Early 2022"]
[White "Domingo Nunez, Alejandro"]
[Black "Gracia Alvarez, Gerardo Antonio"]
[WhiteFideId "22245561"]
[BlackFideId "5109124"]
[WhiteElo "2215"]
[BlackElo "2139"]
[Result "1-0"]
[Round "04"]
[TimeControl "180+1"]
[Date "2022.04.05"]
[WhiteClock "0:01:38"]
[BlackClock "0:00:48"]

1. c4 {[%clk 0:03:00]}  c5 {[%clk 0:02:59]} 2. Nc3 {[%clk 0:03:01]}  Nc6 {[%clk 0:02:59]} 3. Nf3 {[%clk 0:03:01]}  g6 {[%clk 0:02:58]} 4. e3 {[%clk 0:03:01]}  Nf6 {[%clk 0:02:57]} 5. d4 {[%clk 0:03:01]}  cxd4 {[%clk 0:02:58]} 6. exd4 {[%clk 0:03:02]}  d5 {[%clk 0:02:58]} 7. cxd5 {[%clk 0:03:02]}  Nxd5 {[%clk 0:02:58]} 8. Qb3 {[%clk 0:03:03]}  Nxc3 {[%clk 0:02:56]} 9. Bc4 {[%clk 0:03:03]}  Nd5 {[%clk 0:02:56]} 10. Bxd5 {[%clk 0:03:04]}  e6 {[%clk 0:02:55]} 11. Bxc6+ {[%clk 0:03:04]}  bxc6 {[%clk 0:02:55]} 12. Bg5 {[%clk 0:03:02]}  f6 {[%clk 0:02:43]} 13. Bf4 {[%clk 0:02:58]}  Qd5 {[%clk 0:02:41]} 14. O-O {[%clk 0:02:57]}  Kf7 {[%clk 0:02:30]} 15. Rfc1 {[%clk 0:02:51]}  Qxb3 {[%clk 0:02:20]} 16. axb3 {[%clk 0:02:52]}  Bb7 {[%clk 0:02:12]} 17. Nd2 {[%clk 0:02:50]}  Bb4 {[%clk 0:01:57]} 18. Ne4 {[%clk 0:02:43]}  Ke7 {[%clk 0:01:52]} 19. Ra4 {[%clk 0:02:31]}  a5 {[%clk 0:01:52]} 20. Bd2 {[%clk 0:02:30]}  Bxd2 {[%clk 0:01:44]} 21. Nxd2 {[%clk 0:02:31]}  Rhd8 {[%clk 0:01:42]} 22. Ne4 {[%clk 0:02:16]}  Rd5 {[%clk 0:01:39]} 23. Nc5 {[%clk 0:01:54]}  Bc8 {[%clk 0:01:35]} 24. h3 {[%clk 0:01:42]}  h5 {[%clk 0:01:28]} 25. Rcc4 {[%clk 0:01:38]}  Ba6 {[%clk 0:01:15]} 26. Rxa5 {[%clk 0:01:38]}  Bxc4 {[%clk 0:01:14]} 27. Rxa8 {[%clk 0:01:37]}  Bb5 {[%clk 0:00:59]} 28. Ra7+ {[%clk 0:01:37]}  Ke8 {[%clk 0:00:58]} 29. Nxe6 {[%clk 0:01:38]}  Bd3 {[%clk 0:00:48]} 30. Nc7+ {[%clk 0:01:38]} 1-0


[Site "https://www.chess.com"]

[Event "Titled Tuesday Blitz April 05 Early 2022"]
[White "Dovbnia, Nikita"]
[Black "Zanette, Edgard Vinicius"]
[WhiteFideId "54104599"]
[BlackFideId "2109263"]
[WhiteElo "2111"]
[BlackElo "2182"]
[Result "0-1"]
[Round "04"]
[TimeControl "180+1"]
[Date "2022.04.05"]
[WhiteClock "0:02:18"]
[BlackClock "0:02:18"]

1. Nf3 {[%clk 0:03:00]}  Nf6 {[%clk 0:02:58]} 2. b3 {[%clk 0:03:01]}  c5 {[%clk 0:02:58]} 3. Bb2 {[%clk 0:03:02]}  e6 {[%clk 0:02:58]} 4. e3 {[%clk 0:03:02]}  Be7 {[%clk 0:02:58]} 5. g3 {[%clk 0:02:59]}  b6 {[%clk 0:02:56]} 6. Bg2 {[%clk 0:02:59]}  Bb7 {[%clk 0:02:55]} 7. O-O {[%clk 0:02:59]}  O-O {[%clk 0:02:55]} 8. c4 {[%clk 0:03:00]}  d6 {[%clk 0:02:54]} 9. Nc3 {[%clk 0:03:00]}  Nbd7 {[%clk 0:02:53]} 10. d4 {[%clk 0:02:58]}  Ne4 {[%clk 0:02:52]} 11. Qc2 {[%clk 0:02:57]}  Nxc3 {[%clk 0:02:47]} 12. Qxc3 {[%clk 0:02:57]}  Bf6 {[%clk 0:02:42]} 13. Rfe1 {[%clk 0:02:50]}  e5 {[%clk 0:02:28]} 14. d5 {[%clk 0:02:35]}  e4 {[%clk 0:02:24]} 15. Qc2 {[%clk 0:02:18]}  Bxb2 {[%clk 0:02:18]} 16. Qxb2 {[%clk 0:02:18]}  exf3 {[%clk 0:02:19]} 17. Bxf3 {[%clk 0:02:19]}  Qf6 {[%clk 0:02:18]} 18. Qc2 {[%clk 0:02:18]}  Qxf3 {[%clk 0:02:18]} 0-1


[Site "https://www.chess.com"]

[Event "Titled Tuesday Blitz April 05 Early 2022"]
[White "Ferreira, Vitor Hugo Vieira"]
[Black "Srebrnic, Marko"]
[WhiteFideId "2119765"]
[BlackFideId "14603616"]
[WhiteElo "2165"]
[BlackElo "2340"]
[Result "0-1"]
[Round "04"]
[TimeControl "180+1"]
[Date "2022.04.05"]
[WhiteClock "0:00:59"]
[BlackClock "0:00:48"]

1. Nf3 {[%clk 0:03:00]}  Nf6 {[%clk 0:02:46]} 2. g4 {[%clk 0:03:01]}  Nxg4 {[%clk 0:02:42]} 3. e4 {[%clk 0:03:00]}  d6 {[%clk 0:02:41]} 4. d4 {[%clk 0:03:00]}  e5 {[%clk 0:02:38]} 5. h3 {[%clk 0:02:59]}  Nf6 {[%clk 0:02:38]} 6. Nc3 {[%clk 0:02:57]}  exd4 {[%clk 0:02:34]} 7. Qxd4 {[%clk 0:02:57]}  Nc6 {[%clk 0:02:34]} 8. Bb5 {[%clk 0:02:57]}  Bd7 {[%clk 0:02:34]} 9. Bxc6 {[%clk 0:02:57]}  bxc6 {[%clk 0:02:35]} 10. Bg5 {[%clk 0:02:56]}  Be7 {[%clk 0:02:33]} 11. O-O-O {[%clk 0:02:56]}  O-O {[%clk 0:02:21]} 12. Bxf6 {[%clk 0:02:55]}  Bxf6 {[%clk 0:02:17]} 13. e5 {[%clk 0:02:55]}  Bg5+ {[%clk 0:02:10]} 14. Nxg5 {[%clk 0:02:53]}  Qxg5+ {[%clk 0:02:09]} 15. f4 {[%clk 0:02:53]}  Qh6 {[%clk 0:02:08]} 16. exd6 {[%clk 0:02:53]}  cxd6 {[%clk 0:02:08]} 17. Qxd6 {[%clk 0:02:53]}  Qxd6 {[%clk 0:02:07]} 18. Rxd6 {[%clk 0:02:54]}  Bc8 {[%clk 0:02:02]} 19. h4 {[%clk 0:02:47]}  Rb8 {[%clk 0:02:00]} 20. Re1 {[%clk 0:02:44]}  Rb4 {[%clk 0:01:59]} 21. Re4 {[%clk 0:02:38]}  Rxe4 {[%clk 0:01:54]} 22. Nxe4 {[%clk 0:02:39]}  Re8 {[%clk 0:01:52]} 23. Nc5 {[%clk 0:02:30]}  h5 {[%clk 0:01:49]} 24. Rxc6 {[%clk 0:02:29]}  Bg4 {[%clk 0:01:50]} 25. Rc7 {[%clk 0:02:26]}  Re1+ {[%clk 0:01:45]} 26. Kd2 {[%clk 0:02:26]}  Rh1 {[%clk 0:01:46]} 27. Rxa7 {[%clk 0:02:23]}  Rxh4 {[%clk 0:01:41]} 28. b4 {[%clk 0:02:23]}  Rh1 {[%clk 0:01:40]} 29. b5 {[%clk 0:02:20]}  Rb1 {[%clk 0:01:41]} 30. Nb3 {[%clk 0:02:17]}  h4 {[%clk 0:01:40]} 31. b6 {[%clk 0:02:18]}  Bf3 {[%clk 0:01:41]} 32. Nd4 {[%clk 0:02:08]}  Be4 {[%clk 0:01:34]} 33. Ra3 {[%clk 0:02:01]}  Rxb6 {[%clk 0:01:32]} 34. Rh3 {[%clk 0:02:01]}  Rh6 {[%clk 0:01:31]} 35. Ne2 {[%clk 0:01:35]}  f6 {[%clk 0:01:23]} 36. a4 {[%clk 0:01:34]}  g5 {[%clk 0:01:23]} 37. fxg5 {[%clk 0:01:33]}  fxg5 {[%clk 0:01:24]} 38. Ke3 {[%clk 0:01:33]}  Bxc2 {[%clk 0:01:19]} 39. Nd4 {[%clk 0:01:30]}  Bxa4 {[%clk 0:01:15]} 40. Kf3 {[%clk 0:01:30]}  Bd7 {[%clk 0:01:14]} 41. Rh1 {[%clk 0:01:28]}  Rf6+ {[%clk 0:01:11]} 42. Ke4 {[%clk 0:01:27]}  Kg7 {[%clk 0:01:00]} 43. Ke5 {[%clk 0:01:27]}  Kg6 {[%clk 0:00:53]} 44. Ra1 {[%clk 0:01:26]}  h3 {[%clk 0:00:52]} 45. Ra7 {[%clk 0:01:26]}  h2 {[%clk 0:00:50]} 46. Ra1 {[%clk 0:01:22]}  g4 {[%clk 0:00:50]} 47. Ne2 {[%clk 0:01:20]}  Re6+ {[%clk 0:00:49]} 48. Kf4 {[%clk 0:01:21]}  Rxe2 {[%clk 0:00:49]} 49. Rh1 {[%clk 0:00:59]}  Bc6 {[%clk 0:00:48]} 0-1


[Site "https://www.chess.com"]

[Event "Titled Tuesday Blitz April 05 Early 2022"]
[White "Gabdrakhmanov, Azat"]
[Black "Roberson, Peter T"]
[WhiteFideId "34189197"]
[BlackFideId "412384"]
[WhiteElo "2279"]
[BlackElo "2346"]
[Result "0-1"]
[Round "04"]
[TimeControl "180+1"]
[Date "2022.04.05"]
[WhiteClock "0:00:20"]
[BlackClock "0:00:47"]

1. e4 {[%clk 0:03:00]}  c5 {[%clk 0:03:00]} 2. Nf3 {[%clk 0:03:01]}  a6 {[%clk 0:03:00]} 3. c4 {[%clk 0:02:59]}  e6 {[%clk 0:03:00]} 4. Nc3 {[%clk 0:02:59]}  b6 {[%clk 0:02:59]} 5. d4 {[%clk 0:02:59]}  cxd4 {[%clk 0:03:00]} 6. Nxd4 {[%clk 0:03:00]}  Bb7 {[%clk 0:03:01]} 7. Bd3 {[%clk 0:03:00]}  Nc6 {[%clk 0:02:59]} 8. Nxc6 {[%clk 0:03:00]}  Bxc6 {[%clk 0:02:56]} 9. O-O {[%clk 0:02:59]}  Qc7 {[%clk 0:02:56]} 10. Re1 {[%clk 0:02:59]}  d6 {[%clk 0:02:55]} 11. Nd5 {[%clk 0:02:54]}  Qb7 {[%clk 0:02:56]} 12. Be3 {[%clk 0:02:48]}  exd5 {[%clk 0:02:56]} 13. exd5 {[%clk 0:02:49]}  Bd7 {[%clk 0:02:57]} 14. Bxb6+ {[%clk 0:02:38]}  Be7 {[%clk 0:02:56]} 15. Bd4 {[%clk 0:02:38]}  Kf8 {[%clk 0:02:55]} 16. b4 {[%clk 0:02:11]}  Bf6 {[%clk 0:02:54]} 17. Bxf6 {[%clk 0:01:43]}  Nxf6 {[%clk 0:02:55]} 18. Rb1 {[%clk 0:01:42]}  g6 {[%clk 0:02:52]} 19. Qf3 {[%clk 0:01:42]}  Kg7 {[%clk 0:02:51]} 20. Qg3 {[%clk 0:01:43]}  Qb8 {[%clk 0:02:03]} 21. Qf4 {[%clk 0:01:24]}  Re8 {[%clk 0:01:57]} 22. Red1 {[%clk 0:01:24]}  Re5 {[%clk 0:01:48]} 23. h3 {[%clk 0:01:20]}  Qa7 {[%clk 0:01:47]} 24. Kh1 {[%clk 0:01:19]}  Rae8 {[%clk 0:01:47]} 25. Rbc1 {[%clk 0:01:17]}  Bf5 {[%clk 0:01:41]} 26. Rc2 {[%clk 0:00:38]}  Bxd3 {[%clk 0:01:35]} 27. Rxd3 {[%clk 0:00:38]}  Rf5 {[%clk 0:01:33]} 28. Qd4 {[%clk 0:00:36]}  Qxd4 {[%clk 0:01:21]} 29. Rxd4 {[%clk 0:00:37]}  Rc8 {[%clk 0:01:21]} 30. Rcd2 {[%clk 0:00:20]}  Re5 {[%clk 0:01:19]} 31. Kh2 {[%clk 0:00:21]}  Re4 {[%clk 0:01:16]} 32. f3 {[%clk 0:00:18]}  Rxd4 {[%clk 0:01:10]} 33. Rxd4 {[%clk 0:00:19]}  Nd7 {[%clk 0:01:10]} 34. f4 {[%clk 0:00:18]}  Nb6 {[%clk 0:01:03]} 35. c5 {[%clk 0:00:19]}  dxc5 {[%clk 0:01:03]} 36. bxc5 {[%clk 0:00:19]}  Rxc5 {[%clk 0:01:04]} 37. d6 {[%clk 0:00:20]}  Nd7 {[%clk 0:01:04]} 38. Rb4 {[%clk 0:00:20]}  Rc6 {[%clk 0:01:02]} 39. Kg3 {[%clk 0:00:19]}  Rxd6 {[%clk 0:01:02]} 40. Kf3 {[%clk 0:00:20]}  Rd3+ {[%clk 0:01:01]} 41. Ke2 {[%clk 0:00:19]}  Rg3 {[%clk 0:00:59]} 42. Kf2 {[%clk 0:00:19]}  Ra3 {[%clk 0:00:59]} 43. Rb2 {[%clk 0:00:19]}  Nf6 {[%clk 0:00:57]} 44. Re2 {[%clk 0:00:20]}  Nd5 {[%clk 0:00:57]} 45. g3 {[%clk 0:00:20]}  Nc3 {[%clk 0:00:56]} 46. Re7 {[%clk 0:00:20]}  Nxa2 {[%clk 0:00:53]} 47. g4 {[%clk 0:00:19]}  Nb4 {[%clk 0:00:51]} 48. Ra7 {[%clk 0:00:20]}  a5 {[%clk 0:00:50]} 49. h4 {[%clk 0:00:20]}  h6 {[%clk 0:00:47]} 50. Ra6 {[%clk 0:00:20]}  Nxa6 {[%clk 0:00:47]} 0-1


[Site "https://www.chess.com"]

[Event "Titled Tuesday Blitz April 05 Early 2022"]
[White "Gatterer, Florian"]
[Black "Hnydiuk, Aleksander"]
[WhiteFideId "811688"]
[BlackFideId "1109057"]
[WhiteElo "2218"]
[BlackElo "2374"]
[Result "1/2-1/2"]
[Round "04"]
[TimeControl "180+1"]
[Date "2022.04.05"]
[WhiteClock "0:02:40"]
[BlackClock "0:02:28"]

1. Nf3 {[%clk 0:03:00]}  Nf6 {[%clk 0:03:00]} 2. c4 {[%clk 0:03:00]}  e6 {[%clk 0:02:55]} 3. Nc3 {[%clk 0:02:57]}  d5 {[%clk 0:02:52]} 4. e3 {[%clk 0:02:57]}  c5 {[%clk 0:02:48]} 5. cxd5 {[%clk 0:02:56]}  Nxd5 {[%clk 0:02:47]} 6. Nxd5 {[%clk 0:02:53]}  Qxd5 {[%clk 0:02:47]} 7. b3 {[%clk 0:02:54]}  Be7 {[%clk 0:02:37]} 8. Bb2 {[%clk 0:02:53]}  O-O {[%clk 0:02:36]} 9. Bc4 {[%clk 0:02:52]}  Qd8 {[%clk 0:02:33]} 10. Qe2 {[%clk 0:02:45]}  Nc6 {[%clk 0:02:31]} 11. O-O {[%clk 0:02:43]}  b6 {[%clk 0:02:28]} 12. d4 {[%clk 0:02:40]}  Bb7 {[%clk 0:02:28]} 13. Rfd1 {[%clk 0:02:40]} 1/2-1/2


[Site "https://www.chess.com"]

[Event "Titled Tuesday Blitz April 05 Early 2022"]
[White "Girinath, P.D.S."]
[Black "Molina, Roberto Junio Brito"]
[WhiteFideId "5000572"]
[BlackFideId "2109450"]
[WhiteElo "2369"]
[BlackElo "2432"]
[Result "0-1"]
[Round "04"]
[TimeControl "180+1"]
[Date "2022.04.05"]
[WhiteClock "0:00:02"]
[BlackClock "0:00:05"]

1. e4 {[%clk 0:03:00]}  c6 {[%clk 0:03:00]} 2. d3 {[%clk 0:02:57]}  d5 {[%clk 0:03:00]} 3. Nd2 {[%clk 0:02:58]}  g6 {[%clk 0:03:00]} 4. Ngf3 {[%clk 0:02:58]}  Bg7 {[%clk 0:03:00]} 5. g3 {[%clk 0:02:59]}  e5 {[%clk 0:03:00]} 6. Bg2 {[%clk 0:02:59]}  Ne7 {[%clk 0:03:00]} 7. O-O {[%clk 0:02:59]}  O-O {[%clk 0:03:00]} 8. Re1 {[%clk 0:02:59]}  d4 {[%clk 0:03:00]} 9. b4 {[%clk 0:02:56]}  a5 {[%clk 0:03:00]} 10. bxa5 {[%clk 0:02:55]}  Qxa5 {[%clk 0:02:56]} 11. Nc4 {[%clk 0:02:54]}  Qc7 {[%clk 0:02:56]} 12. c3 {[%clk 0:02:28]}  b5 {[%clk 0:02:55]} 13. Na3 {[%clk 0:02:10]}  dxc3 {[%clk 0:02:52]} 14. Qb3 {[%clk 0:02:09]}  Qa5 {[%clk 0:02:41]} 15. Nc2 {[%clk 0:02:05]}  Be6 {[%clk 0:02:40]} 16. Qb1 {[%clk 0:02:01]}  h6 {[%clk 0:02:19]} 17. Ba3 {[%clk 0:01:53]}  Qc7 {[%clk 0:01:44]} 18. Bb4 {[%clk 0:01:41]}  Rd8 {[%clk 0:01:40]} 19. Ne3 {[%clk 0:01:36]}  c5 {[%clk 0:01:27]} 20. Bxc3 {[%clk 0:01:36]}  b4 {[%clk 0:01:28]} 21. Bb2 {[%clk 0:01:35]}  Nbc6 {[%clk 0:01:27]} 22. Rc1 {[%clk 0:01:29]}  Qa7 {[%clk 0:01:24]} 23. Nc4 {[%clk 0:01:22]}  f6 {[%clk 0:01:14]} 24. Qc2 {[%clk 0:01:07]}  Rac8 {[%clk 0:01:09]} 25. Qe2 {[%clk 0:01:04]}  g5 {[%clk 0:01:04]} 26. h4 {[%clk 0:01:02]}  Na5 {[%clk 0:00:43]} 27. Nxa5 {[%clk 0:00:49]}  Qxa5 {[%clk 0:00:44]} 28. hxg5 {[%clk 0:00:50]}  hxg5 {[%clk 0:00:44]} 29. Nd2 {[%clk 0:00:41]}  Nc6 {[%clk 0:00:32]} 30. Nc4 {[%clk 0:00:39]}  Qc7 {[%clk 0:00:30]} 31. Bf3 {[%clk 0:00:37]}  Nd4 {[%clk 0:00:22]} 32. Bxd4 {[%clk 0:00:36]}  Rxd4 {[%clk 0:00:23]} 33. Bg4 {[%clk 0:00:34]}  Bxg4 {[%clk 0:00:21]} 34. Qxg4 {[%clk 0:00:34]}  Rxd3 {[%clk 0:00:18]} 35. Nb6 {[%clk 0:00:32]}  Rcd8 {[%clk 0:00:15]} 36. Nd5 {[%clk 0:00:30]}  Qd6 {[%clk 0:00:15]} 37. Rc4 {[%clk 0:00:29]}  Rd4 {[%clk 0:00:15]} 38. Rac1 {[%clk 0:00:27]}  Rxc4 {[%clk 0:00:14]} 39. Rxc4 {[%clk 0:00:28]}  Kf7 {[%clk 0:00:14]} 40. Qh5+ {[%clk 0:00:28]}  Kf8 {[%clk 0:00:14]} 41. Qe2 {[%clk 0:00:24]}  Ra8 {[%clk 0:00:14]} 42. Qc2 {[%clk 0:00:23]}  Ra5 {[%clk 0:00:14]} 43. Kg2 {[%clk 0:00:18]}  f5 {[%clk 0:00:14]} 44. Qe2 {[%clk 0:00:16]}  fxe4 {[%clk 0:00:12]} 45. Qxe4 {[%clk 0:00:17]}  Rxa2 {[%clk 0:00:12]} 46. Qf5+ {[%clk 0:00:16]}  Kg8 {[%clk 0:00:12]} 47. Ne3 {[%clk 0:00:15]}  Ra7 {[%clk 0:00:12]} 48. Rg4 {[%clk 0:00:15]}  Qf6 {[%clk 0:00:11]} 49. Qc8+ {[%clk 0:00:14]}  Qf8 {[%clk 0:00:10]} 50. Qe6+ {[%clk 0:00:15]}  Qf7 {[%clk 0:00:10]} 51. Qc8+ {[%clk 0:00:14]}  Qf8 {[%clk 0:00:11]} 52. Qe6+ {[%clk 0:00:12]}  Qf7 {[%clk 0:00:11]} 53. Qd6 {[%clk 0:00:11]}  Qe7 {[%clk 0:00:09]} 54. Qg6 {[%clk 0:00:09]}  Qf6 {[%clk 0:00:08]} 55. Qe8+ {[%clk 0:00:09]}  Qf8 {[%clk 0:00:08]} 56. Qg6 {[%clk 0:00:08]}  Qf6 {[%clk 0:00:08]} 57. Qe8+ {[%clk 0:00:08]}  Qf8 {[%clk 0:00:08]} 58. Qh5 {[%clk 0:00:08]}  Bf6 {[%clk 0:00:07]} 59. Nf5 {[%clk 0:00:07]}  Rh7 {[%clk 0:00:04]} 60. Qg6+ {[%clk 0:00:06]}  Kh8 {[%clk 0:00:04]} 61. Rc4 {[%clk 0:00:02]}  Qf7 {[%clk 0:00:05]} 0-1


[Site "https://www.chess.com"]

[Event "Titled Tuesday Blitz April 05 Early 2022"]
[White "Hernandez Jimenez, Alexander Andres"]
[Black "Omariev, Maksim"]
[WhiteFideId "3900452"]
[BlackFideId "4193423"]
[WhiteElo "2098"]
[BlackElo "2492"]
[Result "0-1"]
[Round "04"]
[TimeControl "180+1"]
[Date "2022.04.05"]
[WhiteClock "0:00:01"]
[BlackClock "0:00:01"]

1. e4 {[%clk 0:02:49]}  c5 {[%clk 0:03:00]} 2. Nf3 {[%clk 0:02:49]}  d6 {[%clk 0:03:00]} 3. d4 {[%clk 0:02:48]}  cxd4 {[%clk 0:03:01]} 4. Nxd4 {[%clk 0:02:49]}  Nf6 {[%clk 0:03:01]} 5. Nc3 {[%clk 0:02:49]}  a6 {[%clk 0:03:02]} 6. h3 {[%clk 0:02:50]}  e6 {[%clk 0:03:01]} 7. g4 {[%clk 0:02:50]}  Nfd7 {[%clk 0:03:02]} 8. Bg2 {[%clk 0:02:50]}  Qc7 {[%clk 0:03:02]} 9. O-O {[%clk 0:02:49]}  b5 {[%clk 0:03:02]} 10. a3 {[%clk 0:02:49]}  Bb7 {[%clk 0:03:03]} 11. Be3 {[%clk 0:02:47]}  Ne5 {[%clk 0:02:57]} 12. f4 {[%clk 0:02:25]}  Nc4 {[%clk 0:02:57]} 13. Bc1 {[%clk 0:02:25]}  Be7 {[%clk 0:02:23]} 14. b3 {[%clk 0:02:23]}  Nxa3 {[%clk 0:02:11]} 15. Bxa3 {[%clk 0:01:54]}  Qxc3 {[%clk 0:02:11]} 16. Rf3 {[%clk 0:01:53]}  Qc7 {[%clk 0:02:08]} 17. Bb2 {[%clk 0:01:49]}  O-O {[%clk 0:02:08]} 18. Qe2 {[%clk 0:01:48]}  Nc6 {[%clk 0:02:06]} 19. Rd1 {[%clk 0:01:46]}  Nxd4 {[%clk 0:02:02]} 20. Bxd4 {[%clk 0:01:45]}  Rfc8 {[%clk 0:01:59]} 21. Rf2 {[%clk 0:01:46]}  Bh4 {[%clk 0:01:48]} 22. Rff1 {[%clk 0:01:34]}  Qxc2 {[%clk 0:01:49]} 23. Qe3 {[%clk 0:01:30]}  Qc7 {[%clk 0:01:17]} 24. g5 {[%clk 0:01:28]}  e5 {[%clk 0:01:15]} 25. Ba1 {[%clk 0:01:26]}  Qe7 {[%clk 0:01:11]} 26. Qf3 {[%clk 0:00:46]}  exf4 {[%clk 0:01:08]} 27. Qxf4 {[%clk 0:00:44]}  Bxg5 {[%clk 0:01:07]} 28. Qxd6 {[%clk 0:00:44]}  Qxd6 {[%clk 0:00:54]} 29. Rxd6 {[%clk 0:00:44]}  Rc7 {[%clk 0:00:44]} 30. Rfd1 {[%clk 0:00:30]}  Re8 {[%clk 0:00:29]} 31. e5 {[%clk 0:00:27]}  Bxg2 {[%clk 0:00:20]} 32. Kxg2 {[%clk 0:00:27]}  h5 {[%clk 0:00:17]} 33. Rxa6 {[%clk 0:00:26]}  Rc2+ {[%clk 0:00:16]} 34. Kf3 {[%clk 0:00:26]}  Rh2 {[%clk 0:00:12]} 35. Kg3 {[%clk 0:00:20]}  Re2 {[%clk 0:00:12]} 36. Rd3 {[%clk 0:00:16]}  g6 {[%clk 0:00:11]} 37. Rb6 {[%clk 0:00:12]}  Ra2 {[%clk 0:00:06]} 38. Bd4 {[%clk 0:00:11]}  h4+ {[%clk 0:00:04]} 39. Kg4 {[%clk 0:00:09]}  Rg2+ {[%clk 0:00:04]} 40. Kf3 {[%clk 0:00:09]}  Rg3+ {[%clk 0:00:05]} 41. Ke2 {[%clk 0:00:10]}  Bf4 {[%clk 0:00:01]} 42. Rxb5 {[%clk 0:00:09]}  Rxd3 {[%clk 0:00:01]} 43. Kxd3 {[%clk 0:00:09]}  g5 {[%clk 0:00:01]} 44. Ke4 {[%clk 0:00:08]}  Kh7 {[%clk 0:00:01]} 45. Kf5 {[%clk 0:00:08]}  Rc8 {[%clk 0:00:01]} 46. Rb7 {[%clk 0:00:08]}  Kg8 {[%clk 0:00:01]} 47. Kf6 {[%clk 0:00:02]}  Rc1 {[%clk 0:00:01]} 48. Rb8+ {[%clk 0:00:02]}  Kh7 {[%clk 0:00:02]} 49. Bb6 {[%clk 0:00:02]}  g4 {[%clk 0:00:01]} 50. Kxf7 {[%clk 0:00:01]}  gxh3 {[%clk 0:00:01]} 0-1


[Site "https://www.chess.com"]

[Event "Titled Tuesday Blitz April 05 Early 2022"]
[White "Hirneise, Jens"]
[Black "Mika, Tomasz"]
[WhiteFideId "24614734"]
[BlackFideId "1132970"]
[WhiteElo "2359"]
[BlackElo "2116"]
[Result "1-0"]
[Round "04"]
[TimeControl "180+1"]
[Date "2022.04.05"]
[WhiteClock "0:02:04"]
[BlackClock "0:01:35"]

1. d4 {[%clk 0:03:00]}  d5 {[%clk 0:02:59]} 2. c4 {[%clk 0:03:00]}  e6 {[%clk 0:02:59]} 3. Nf3 {[%clk 0:02:59]}  c5 {[%clk 0:02:59]} 4. e3 {[%clk 0:02:58]}  Nc6 {[%clk 0:02:59]} 5. Nc3 {[%clk 0:02:57]}  Nf6 {[%clk 0:02:58]} 6. a3 {[%clk 0:02:54]}  cxd4 {[%clk 0:02:55]} 7. exd4 {[%clk 0:02:54]}  g6 {[%clk 0:02:54]} 8. c5 {[%clk 0:02:46]}  Ne4 {[%clk 0:02:50]} 9. Bb5 {[%clk 0:02:44]}  Bd7 {[%clk 0:02:45]} 10. O-O {[%clk 0:02:41]}  Nxc3 {[%clk 0:02:43]} 11. bxc3 {[%clk 0:02:42]}  Bg7 {[%clk 0:02:42]} 12. Re1 {[%clk 0:02:40]}  Qa5 {[%clk 0:02:41]} 13. a4 {[%clk 0:02:37]}  Qxc3 {[%clk 0:02:40]} 14. Bd2 {[%clk 0:02:36]}  Qb2 {[%clk 0:02:34]} 15. Rb1 {[%clk 0:02:34]}  Qa2 {[%clk 0:02:33]} 16. Re2 {[%clk 0:02:27]}  a6 {[%clk 0:01:50]} 17. Bb4 {[%clk 0:02:07]}  Nxb4 {[%clk 0:01:35]} 18. Bxd7+ {[%clk 0:02:03]}  Kxd7 {[%clk 0:01:36]} 19. Rxa2 {[%clk 0:02:03]}  Nxa2 {[%clk 0:01:37]} 20. Rxb7+ {[%clk 0:02:03]}  Kc8 {[%clk 0:01:35]} 21. Qb3 {[%clk 0:02:04]} 1-0


[Site "https://www.chess.com"]

[Event "Titled Tuesday Blitz April 05 Early 2022"]
[White "Horak, Martin"]
[Black "Pliukha, Myhajlo"]
[WhiteFideId "367095"]
[BlackFideId "14164698"]
[WhiteElo "1997"]
[BlackElo "2229"]
[Result "0-1"]
[Round "04"]
[TimeControl "180+1"]
[Date "2022.04.05"]
[WhiteClock "0:00:10"]
[BlackClock "0:00:42"]

1. Nf3 {[%clk 0:03:00]}  Nf6 {[%clk 0:02:57]} 2. c4 {[%clk 0:03:00]}  e6 {[%clk 0:02:57]} 3. Nc3 {[%clk 0:02:59]}  d5 {[%clk 0:02:57]} 4. e3 {[%clk 0:02:58]}  c5 {[%clk 0:02:57]} 5. cxd5 {[%clk 0:02:56]}  Nxd5 {[%clk 0:02:57]} 6. Nxd5 {[%clk 0:02:55]}  exd5 {[%clk 0:02:55]} 7. d4 {[%clk 0:02:54]}  Nc6 {[%clk 0:02:56]} 8. b3 {[%clk 0:02:37]}  Bg4 {[%clk 0:02:50]} 9. Be2 {[%clk 0:02:29]}  Bxf3 {[%clk 0:02:47]} 10. Bxf3 {[%clk 0:02:29]}  cxd4 {[%clk 0:02:48]} 11. O-O {[%clk 0:02:24]}  Be7 {[%clk 0:02:40]} 12. exd4 {[%clk 0:02:05]}  O-O {[%clk 0:02:40]} 13. Re1 {[%clk 0:02:03]}  Bf6 {[%clk 0:02:41]} 14. Be3 {[%clk 0:02:03]}  Qd6 {[%clk 0:02:39]} 15. Rc1 {[%clk 0:01:59]}  Rfe8 {[%clk 0:02:40]} 16. Rc5 {[%clk 0:01:55]}  Nxd4 {[%clk 0:02:35]} 17. Rxd5 {[%clk 0:01:33]}  Nxf3+ {[%clk 0:02:31]} 18. Qxf3 {[%clk 0:01:33]}  Qc6 {[%clk 0:02:29]} 19. Red1 {[%clk 0:01:31]}  Rac8 {[%clk 0:02:19]} 20. g3 {[%clk 0:01:24]}  h6 {[%clk 0:02:13]} 21. Kg2 {[%clk 0:01:22]}  a6 {[%clk 0:02:06]} 22. Rd7 {[%clk 0:01:16]}  b5 {[%clk 0:01:58]} 23. h4 {[%clk 0:01:04]}  Re6 {[%clk 0:01:40]} 24. Ra7 {[%clk 0:00:52]}  Qxf3+ {[%clk 0:01:14]} 25. Kxf3 {[%clk 0:00:52]}  Rc2 {[%clk 0:01:15]} 26. Rd2 {[%clk 0:00:47]}  Rxd2 {[%clk 0:01:03]} 27. Bxd2 {[%clk 0:00:47]}  Bd4 {[%clk 0:01:03]} 28. Rd7 {[%clk 0:00:46]}  Rf6+ {[%clk 0:01:03]} 29. Bf4 {[%clk 0:00:41]}  Bb6 {[%clk 0:00:55]} 30. Rd6 {[%clk 0:00:37]}  Rxd6 {[%clk 0:00:55]} 31. Bxd6 {[%clk 0:00:38]}  f5 {[%clk 0:00:55]} 32. h5 {[%clk 0:00:34]}  Kf7 {[%clk 0:00:55]} 33. Be5 {[%clk 0:00:34]}  g5 {[%clk 0:00:55]} 34. hxg6+ {[%clk 0:00:35]}  Kxg6 {[%clk 0:00:55]} 35. g4 {[%clk 0:00:25]}  fxg4+ {[%clk 0:00:55]} 36. Kxg4 {[%clk 0:00:26]}  Bxf2 {[%clk 0:00:55]} 37. Bc7 {[%clk 0:00:18]}  h5+ {[%clk 0:00:55]} 38. Kf3 {[%clk 0:00:18]}  Bc5 {[%clk 0:00:54]} 39. Ke4 {[%clk 0:00:18]}  h4 {[%clk 0:00:46]} 40. Kf4 {[%clk 0:00:17]}  Kh5 {[%clk 0:00:39]} 41. a4 {[%clk 0:00:16]}  Bf2 {[%clk 0:00:35]} 42. Kf3 {[%clk 0:00:16]}  Be1 {[%clk 0:00:35]} 43. Ke2 {[%clk 0:00:15]}  Bg3 {[%clk 0:00:34]} 44. Bxg3 {[%clk 0:00:10]}  hxg3 {[%clk 0:00:35]} 45. axb5 {[%clk 0:00:10]}  axb5 {[%clk 0:00:35]} 46. Kf3 {[%clk 0:00:08]}  Kh4 {[%clk 0:00:35]} 47. Kg2 {[%clk 0:00:08]}  Kg4 {[%clk 0:00:36]} 48. b4 {[%clk 0:00:07]}  Kf4 {[%clk 0:00:35]} 49. Kg1 {[%clk 0:00:07]}  Ke4 {[%clk 0:00:36]} 50. Kg2 {[%clk 0:00:07]}  Kd4 {[%clk 0:00:37]} 51. Kxg3 {[%clk 0:00:08]}  Kc4 {[%clk 0:00:38]} 52. Kf2 {[%clk 0:00:09]}  Kxb4 {[%clk 0:00:39]} 53. Ke2 {[%clk 0:00:09]}  Kc3 {[%clk 0:00:39]} 54. Kd1 {[%clk 0:00:09]}  Kb2 {[%clk 0:00:40]} 55. Kd2 {[%clk 0:00:09]}  b4 {[%clk 0:00:41]} 56. Kd1 {[%clk 0:00:09]}  b3 {[%clk 0:00:41]} 57. Kd2 {[%clk 0:00:10]}  Ka2 {[%clk 0:00:42]} 0-1


[Site "https://www.chess.com"]